Cogmind - Beta 16 @@@ ROGUE MODE // 2025.12.08 @ 08:17:07 Player: shapeshifter Result: Self-destructed Performance ------------- Evolutions (1) 500 Regions Visited (4) 800 Robots Destroyed (35) 175 Value Destroyed (839) 839 Prototype IDs (26) 520 Alien Tech Used (0) 0 Bonus (346) 346 TOTAL SCORE: 3180 Bonus ------- Follower Combat Kills 46 Aligned with FarCom 300 Cogmind --------- Core Integrity 250/400 Matter 300/300 Energy 170/170 System Corruption 0% Temperature Cool (0) Movement Walking (200) Ox1 Location -9/Exiles Parts ------- > --- POWER (1) -------- Makeshift Power Source > --- PROPULSION (3) --- Aluminum Leg Makeshift Leg Wheel > --- UTILITY (3) ------ Large Storage Unit Seismic Detector Light Armor Plating > --- WEAPON (2) ------- Heavy Assault Rifle Makeshift Shrapnel Gun > --- INVENTORY (15) --- Light Treads Combat Airjet Improved Heat Sink Huge Storage Unit Faulty Experimental Sensor Array Launcher Guidance Computer Launcher Guidance Computer Improved Light Armor Plating Shock Absorption System Trap Extractor (0/4) Bomb Drone Bay Subdweller Beam Cannon Heavy Assault Rifle Mace Peak State ------------ > --- POWER ------------ Makeshift Power Source > --- PROPULSION ------- Aluminum Leg Makeshift Leg Wheel > --- UTILITY ---------- Large Storage Unit Experimental Sensor Array Seismic Detector > --- WEAPON ----------- Heavy Assault Rifle Makeshift Shrapnel Gun > --- INVENTORY -------- Light Treads Heat Sink Improved Heat Sink Disposable Heat Sink Disposable Heat Sink Huge Storage Unit Terrain Scan Processor Light Armor Plating Trap Extractor Subdweller Beam Cannon Heavy Assault Rifle Mace [Rating: 29] Favorites ----------- Power Ion Engine Engine Ion Engine Power Core Light Nuclear Core Propulsion Light Treads Treads Light Treads Leg Makeshift Leg Wheel Wheel Utility Seismic Detector Device Seismic Detector Storage Large Storage Unit Processor Visual Processing Unit Protection Light Armor Plating Weapon Heavy Assault Rifle Energy Gun Small Laser Ballistic Gun Heavy Assault Rifle Build | -11 -10 -9 -9 -9 ------- Run | Yrd Mat Mat Min Exi Slots Evolved 2 | . . 2 . . Power . | . . . . . Propulsion 1 | . . 1 . . Utility 1 | . . 1 . . Weapon . | . . . . . Parts Attached 27 | 8 4 9 6 . Power 4 | 1 1 1 1 . Engine 3 | 1 . 1 1 . Core 1 | . 1 . . . Reactor . | . . . . . Propulsion 9 | 3 . 4 2 . Treads 2 | 2 . . . . Leg 3 | 1 . . 2 . Wheel 4 | . . 4 . . Hover . | . . . . . Flight . | . . . . . Utility 6 | 2 1 1 2 . Device 2 | 1 . . 1 . Storage 2 | 1 1 . . . Processor 1 | . . 1 . . Hackware . | . . . . . Protection 1 | . . . 1 . Artifact . | . . . . . Weapon 8 | 2 2 3 1 . Energy Gun 2 | 1 . 1 . . Energy Cannon . | . . . . . Ballistic Gun 6 | 1 2 2 1 . Ballistic Cannon . | . . . . . Launcher . | . . . . . Special Weapon . | . . . . . Impact Weapon . | . . . . . Slashing Weapon . | . . . . . Piercing Weapon . | . . . . . Special Melee Weapon . | . . . . . Unidentified Prototypes 3 | . . 2 1 . Parts Lost 4 | . . 3 1 . Power . | . . . . . Propulsion 2 | . . 1 1 . Utility . | . . . . . Weapon 2 | . . 2 . . Highest Loss Streak 2 | . . 2 1 . To Critical Strikes . | . . . . . Average Backups 12 | 4 10 14 13 14 Power . | . 1 . . . Propulsion 2 | 2 4 2 1 2 Utility 6 | . 2 7 9 9 Weapon 2 | . 2 4 2 3 Tool/Special . | . . . . . Unused Backups 21 | . 2 1 7 11 Power 1 | . 1 . . . Propulsion 3 | . . 1 . 2 Utility 14 | . . . 7 7 Weapon 3 | . 1 . . 2 Tool/Special . | . . . . . Average Slot Usage (%) 96 | . 100 81 99 100 Engine 10 | . 13 1 11 11 Core 1 | . . 9 . . Treads 12 | . 28 11 . . Leg 7 | . . . 13 22 Wheel 9 | . . 9 18 11 Device 12 | . 14 11 11 11 Storage 12 | . 14 11 11 11 Processor 3 | . . 7 4 . Protection 3 | . . . 6 11 Energy Gun 2 | . 6 . . . Ballistic Gun 21 | . 21 19 22 22 Peak Build Rating 29 | 7 13 16 29 24 Average Rating 15 | 4 9 13 20 24 On Entrance 12 | . 7 13 16 24 Avg Prop Armor Cover (%) 3 | . . . 3 3 Naked Turns . | . . . . . Heaviest Build 35 | 14 32 35 35 33 Greatest Support 40 | 40 40 40 30 30 Greatest Overweight (x) 3 | 2 . 3 1 1 Average Overweight (x) . | . . . . 1 Largest Inventory Capacity 15 | 8 15 15 15 15 Average Capacity 14 | 6 14 15 15 15 Most Carried 15 | 7 15 15 15 15 Average Carried 12 | 5 10 14 14 15 Final Capacity 15 | 8 15 15 15 15 Final Carried 15 | 6 15 13 15 15 Class Distribution -------------------- 67% | Mutant 32% | Scavenger-Mutant Dominant Class ---------------- Mutant | -10/Materials Mutant | -9/Materials Scavenger-Mutant | -9/Mines Scavenger-Mutant | -9/Exiles Resources | -11 -10 -9 -9 -9 ----------- Run | Yrd Mat Mat Min Exi Matter Collected 1021 | 287 348 175 211 . Remotely . | . . . . . Salvage Created 1142 | 44 618 325 155 . Parts 77 | 5 40 22 10 . Haulers Intercepted 2 | . 2 . . . Recyclers Shooed 1 | . 1 . . . Parts Field Recycled . | . . . . . Retrieved Matter . | . . . . . Parts Self-Destructed . | . . . . . Prevented . | . . . . . Parts Restored . | . . . . . Kills | -11 -10 -9 -9 -9 ------- Run | Yrd Mat Mat Min Exi Combat Hostiles Destroyed 25 | . 15 6 4 . Guns 25 | . 15 6 4 . Classes Destroyed 11 | 2 6 2 1 . Worker 2 | 1 1 . . . Builder 3 | . 1 2 . . Tunneler 1 | 1 . . . . Hauler 2 | . 2 . . . Operator 1 | . . 1 . . Watcher 1 | . 1 . . . Swarmer 7 | . 6 . 1 . Grunt 14 | . 7 5 2 . Brawler 1 | . . . 1 . Sentry 1 | . . 1 . . Subdweller 2 | . 2 . . . Best Kill Streak 5 | 2 5 3 2 . Combat Bots Only 3 | . 3 2 2 . Max Kills in Single Turn 2 | 1 2 1 1 . Gunslinging 1 | . 1 . . . Exploded . | . . . . . Melee . | . . . . . Uniques/NPCs Destroyed . | . . . . . Combat | -11 -10 -9 -9 -9 -------- Run | Yrd Mat Mat Min Exi Hostile Shots Fired 119 | . 65 18 36 . Missed 25 | . 11 5 9 . Hits 94 | . 54 13 27 . Melee 2 | . . . 2 . Projectile 92 | . 54 13 25 . Critical Strikes 2 | . . 2 . . Damage Taken 1238 | . 658 266 314 . Core 279 | . 129 114 36 . Absorbed by Shields . | . . . . . Core Remaining (%) 74 | 100 48 . . . Volleys Fired 110 | 7 60 24 19 . Largest 2 | 2 2 2 2 . Hottest 60 | 60 60 46 47 . Shots Fired 212 | 14 120 40 38 . Gun 212 | 14 120 40 38 . Cannon . | . . . . . Launcher . | . . . . . Special . | . . . . . Kinetic 178 | 7 93 40 38 . Thermal 34 | 7 27 . . . Explosive . | . . . . . Electromagnetic . | . . . . . Robot Hit Streak 8 | 4 6 8 5 . Robot Miss Streak 6 | 1 6 3 1 . Penetration Max . | . . . . . Secondary Targets 2 | . 1 . 1 . Max Gunslinging Chain 1 | . 1 . 1 . Shots Hit Robots 132 | 7 70 26 29 . Core Hits 54 | 2 32 11 9 . Critical Kills 1 | . 1 . . . Critical Parts Destroyed 1 | . 1 . . . Critical Strikes 2 | . 2 . . . Destroy 2 | . 2 . . . Melee Attacks . | . . . . . Impact . | . . . . . Slashing . | . . . . . Piercing . | . . . . . Sneak Attacks . | . . . . . Combat Hostiles . | . . . . . Follow-up Attacks . | . . . . . Damage Inflicted 1893 | 91 965 395 442 . Guns 1893 | 91 965 395 442 . Cannons . | . . . . . Explosions . | . . . . . Melee . | . . . . . Ramming . | . . . . . Kinetic 1620 | 47 736 395 442 . Thermal 273 | 44 229 . . . Explosive . | . . . . . Electromagnetic . | . . . . . Impact . | . . . . . Slashing . | . . . . . Piercing . | . . . . . Highest Corruption 2 | . 2 . . . Average Corruption 2 | . 2 . . . Corruption Purged . | . . . . . Corruption Blocked . | . . . . . Effects 6 | . 6 . . . Matter Fused 2 | . 2 . . . Heat Flow Errors 3 | . 3 . . . Energy Discharges 1 | . 1 . . . Overload Shots . | . . . . . Overflow Damage . | . . . . . Projectiles . | . . . . . Explosions . | . . . . . Melee . | . . . . . Knockbacks . | . . . . . Impact . | . . . . . Kinetic . | . . . . . Secondary . | . . . . . Self-Inflicted Damage . | . . . . . Shots . | . . . . . Rammed . | . . . . . Targets Rammed . | . . . . . Kicked . | . . . . . Crushed . | . . . . . Highest Temperature 276 | . 276 21 2 . Average Temperature 63 | . 71 11 1 . Received Heat Transfer 423 | . 234 87 102 . Siege Activations . | . . . . . Martial Activations . | . . . . . Shielding Activations . | . . . . . Robots Disrupted . | . . . . . Combat Hostiles . | . . . . . Robots Corrupted . | . . . . . Combat Hostiles . | . . . . . Parts Fried . | . . . . . Impact Corruptions . | . . . . . Robots Melted . | . . . . . Combat Hostiles . | . . . . . Parts Melted 2 | . 2 . . . Heat Transferred 625 | 100 525 . . . Parts Sabotaged . | . . . . . Parts Stolen . | . . . . . Parts Stripped . | . . . . . Power Chain Reactions . | . . . . . Alert | -11 -10 -9 -9 -9 ------- Run | Yrd Mat Mat Min Exi Maximum Alert Level . | . . . . . Low Security (%) 100 | 100 100 100 100 . Level 1 . | . . . . . Level 2 . | . . . . . Level 3 . | . . . . . Level 4 . | . . . . . Level 5 . | . . . . . High Security . | . . . . . Max Security . | . . . . . Peak Influence 136 | 5 136 56 90 . Initial 31 | . 3 31 12 . Average 33 | 1 57 20 16 . Influence Increases 841 | 10 437 176 218 . Destroy 0b10 Robot/C 540 | . 260 120 160 . Destroy 0b10 Robot/NC 50 | 10 25 15 . . Destroy Leader 146 | . 76 40 30 . Allied During Kill 13 | . . . 13 . Successful Hack 14 | . 14 . . . Select Force Hacks 30 | . 30 . . . Disable Machine 30 | . 15 . 15 . Destroy Structure 3 | . 2 1 . . Lose Combat Pursuer 15 | . 15 . . . Influence Decreases 841 | 5 367 219 250 . Entered New Map 66 | . 2 44 20 . Time Decay 725 | 5 365 155 200 . Lost Part 30 | . . 20 10 . Lost Ally 20 | . . . 20 . Squads Dispatched 7 | . 4 3 . . Investigation 4 | . 3 1 . . Extermination . | . . . . . Reinforcement 3 | . 1 2 . . Assault . | . . . . . Garrison . | . . . . . Intercept . | . . . . . Searches Triggered . | . . . . . Construction Impeded 1 | . . 1 . . Haulers Reinforced . | . . . . . Active Scanning Responses . | . . . . . Cargo Convoy Interrupts . | . . . . . Stealth | -11 -10 -9 -9 -9 --------- Run | Yrd Mat Mat Min Exi Distress Signals . | . . . . . Communications Jammed . | . . . . . Distress Signals . | . . . . . Times Spotted 44 | . 27 9 8 . Peak Tracking Total 5 | . 5 2 4 . Tactical Retreats 4 | . 4 . . . Traps | -11 -10 -9 -9 -9 ------- Run | Yrd Mat Mat Min Exi Traps Triggered 3 | . 2 1 . . Indirectly . | . . . . . Trap Hack Attempts . | . . . . . Triggered . | . . . . . Disarmed . | . . . . . Reprogrammed . | . . . . . Reused . | . . . . . Traps Extracted . | . . . . . Installed . | . . . . . Triggered . | . . . . . Machines | -11 -10 -9 -9 -9 ---------- Run | Yrd Mat Mat Min Exi Machines Disabled 2 | . 1 . 1 . Max in Single Turn 1 | . 1 . 1 . Machines Repaired . | . . . . . Machines Dismantled . | . . . . . Machines Sabotaged . | . . . . . Overloaded Fab Kills . | . . . . . Hacking | -11 -10 -9 -9 -9 --------- Run | Yrd Mat Mat Min Exi Machines Accessed 11 | . 6 2 1 2 Terminals 6 | . 4 2 . . Fabricators . | . . . . . Repair Stations . | . . . . . Recycling Units 2 | . 2 . . . Scanalyzers . | . . . . . Garrison Access . | . . . . . Total Hacks 41 | . 13 3 1 24 Successful 31 | . 5 1 1 24 Failed 10 | . 8 2 . . Catastrophic . | . . . . . Database Lockouts . | . . . . . Manual 14 | . 10 3 . 1 Terminals 12 | . 9 3 . . Fabricators . | . . . . . Repair Stations . | . . . . . Recycling Units 4 | . 4 . . . Scanalyzers . | . . . . . Garrison Access . | . . . . . Terminal Hacks 25 | . . . 1 24 Record 23 | . . . . 23 Open Door 1 | . . . 1 . Proto ID Catalog 1 | . . . . 1 Fabricator Hacks . | . . . . . Repair Station Hacks . | . . . . . Recycling Unit Hacks 2 | . 2 . . . Retrieve Components 2 | . 2 . . . Scanalyzer . | . . . . . Garrison Access Hacks . | . . . . . Unauthorized Hacks 4 | . 3 1 . . Terminals 3 | . 2 1 . . Skim 3 | . 2 1 . . Fabricators . | . . . . . Repair Stations . | . . . . . Recycling Units 1 | . 1 . . . Tunnel 1 | . 1 . . . Scanalyzers . | . . . . . Garrison Access . | . . . . . Data Cores Recovered . | . . . . . Used . | . . . . . Hacking Detections 6 | . 4 2 . . Full Trace Events . | . . . . . Feedback Events . | . . . . . Feedback Blocked . | . . . . . Robot Schematics Acquired . | . . . . . Robots Built . | . . . . . Authchips . | . . . . . Time . | . . . . . Total Robot Build Rating . | . . . . . Part Schematics Acquired . | . . . . . Parts Built . | . . . . . Authchips . | . . . . . Time . | . . . . . Total Part Build Rating . | . . . . . Part Studies Acquired . | . . . . . Parts Repaired . | . . . . . Time . | . . . . . Parts Recycled . | . . . . . Recycled Matter . | . . . . . Retrieved Matter . | . . . . . Retrieved Components 10 | . 10 . . . Parts Scanalyzed . | . . . . . Part Schematics Acquired . | . . . . . Parts Damaged . | . . . . . Bothacking | -11 -10 -9 -9 -9 ------------ Run | Yrd Mat Mat Min Exi Used RIF Installer . | . . . . . Robots Hacked . | . . . . . Non-combat . | . . . . . Combat . | . . . . . Robot Hacks Applied . | . . . . . Relay Couplers Released . | . . . . . Fabnet Peak Effective % . | . . . . . Robots Rewired . | . . . . . Allies Hacked . | . . . . . Hacks Repelled . | . . . . . Allies | -11 -10 -9 -9 -9 -------- Run | Yrd Mat Mat Min Exi Total Allies 3 | . . . 3 . Largest Group 2 | . . . 2 . Highest-Rated Group 45 | . . . 45 . Highest-Rated Ally 31 | . . . 31 . Total Orders . | . . . . . Ally Attacks 21 | . . . 21 . Total Damage 314 | . . . 314 . Kills 4 | . . . 4 . Allies Corrupted . | . . . . . Allies Melted 1 | . . . 1 . Intel | -11 -10 -9 -9 -9 ------- Run | Yrd Mat Mat Min Exi Active Infowar (turns) 2754 | 5 1032 455 950 312 Optics 763 | . . 336 427 . Seismic 2754 | 5 1032 455 950 312 Robot Analysis Total . | . . . . . Derelict Logs Recovered 2 | . . . 2 . Drone Launches . | . . . . . Drone Recoveries . | . . . . . Exploration | -11 -10 -9 -9 -9 ------------- Run | Yrd Mat Mat Min Exi Turns Passed 2852 | 103 1032 455 950 312 Spaces Moved 1464 | 62 427 283 536 156 Core 33 | 33 . . . . Treads 571 | 28 427 116 . . Legs 458 | 1 . . 301 156 Wheels 402 | . . 167 235 . Hover . | . . . . . Flight . | . . . . . Fastest Speed 50 | 50 160 95 95 200 Average Speed 150 | 102 160 124 149 200 Slowest Speed 210 | 160 160 160 210 200 Overloaded Moves . | . . . . . Propulsion Burnouts . | . . . . . Robots Hopped . | . . . . . Potential Cave-ins . | . . . . . Cave-ins Triggered . | . . . . . Exploration Rate (%) 48 | 4 67 29 90 50 Regions Visited 4 Branch Regions 2 Pre-discovered Areas 2 | . 1 . . 1 Known Exits Taken 1 | . . . 1 . Unknown Exits Taken 3 | 1 1 1 . . Scrap Searched 2 | . . . 2 . Spaces Dug . | . . . . . Terrain Destroyed . | . . . . . Melee . | . . . . . Projectile . | . . . . . AOE . | . . . . . Terrain Rammed . | . . . . . Walls Destroyed . | . . . . . Machines Disabled . | . . . . . Actions | -11 -10 -9 -9 -9 --------- Run | Yrd Mat Mat Min Exi Total 1900 | 86 657 347 654 156 Wait 229 | . 146 15 68 . Move 1460 | 61 426 282 535 156 Hop . | . . . . . Pick Up 46 | 10 15 9 12 . Fast Attach 6 | 3 . 1 2 . Attach 13 | 4 . 8 1 . Detach . | . . . . . Swap 10 | 1 4 1 4 . Drop 26 | . 6 7 13 . Fire 110 | 7 60 24 19 . Melee . | . . . . . Ram . | . . . . . Kick . | . . . . . Crush . | . . . . . Escape Stasis . | . . . . . Rewire . | . . . . . Trap . | . . . . . Miscellaneous . | . . . . . Route ------- -11/Scrapyard -10/Materials (discovered 2 exits: *Mat x2) -9/Materials -9/Mines (discovered 2 exits: [*Mat] / *Exi) -9/Exiles History --------- Turn | Location | Event 22 | -11/Scrapyard | Discovered new exit (range 15) 104 | -11/Scrapyard | Entered Materials 307 | -10/Materials | Build established: Mutant 760 | -10/Materials | Discovered new exit (range 9) 804 | -10/Materials | Derelicts attacked the area 845 | -10/Materials | Core integrity fell below 50% 1071 | -10/Materials | Discovered new exit (range 8) 1136 | -10/Materials | Entered another Materials area 1136 | -9/Materials | Evolved 2 slots: Propulsion x1, Utility x1 1467 | -9/Materials | Discovered new exit (range 12) 1591 | -9/Materials | Entered Mines 1725 | -9/Mines | Learned 2 Materials zone layouts 1777 | -9/Mines | A weapon hastily lodged in a ceiling crevice suddenly fell to the ground 1897 | -9/Mines | Identified exit to Exiles 2005 | -9/Mines | Found a damaged Exp. Sensor Array with a note attached 2024 | -9/Mines | Found Prototype Device 2041 | -9/Mines | Identified Exp. Sensor Array 2077 | -9/Mines | Found the Drone Emporium 2088 | -9/Mines | Found Prototype Device 2208 | -9/Mines | Assembled infested the area 2218 | -9/Mines | Received a Mining Laser from a helpful Derelict 2234 | -9/Mines | Build established: Scavenger-Mutant 2248 | -9/Mines | Met 8R-AWN 2323 | -9/Mines | Discovered new exit (range 7) 2541 | -9/Mines | Entered Exiles 2591 | -9/Exiles | Welcomed by 8R-AWN 2623 | -9/Exiles | Met EX-HEX 2703 | -9/Exiles | Met EX-DEC 2711 | -9/Exiles | Learned location of Zion (-6) 2767 | -9/Exiles | Met EX-BIN 2795 | -9/Exiles | Aligned with FarCom system 2797 | -9/Exiles | Given EX-Vault access code 2843 | -9/Exiles | Opened EX-Vault 2853 | -9/Exiles | Self-destructed Last Messages --------------- Modified TNC 0b10 Alert Chip Cloak of Protection Skeleton Box Trap Reconfigurator Supersonic Drone Bay Army-in-a-Box PSU Rigger Chronowheel AWS/Thermal Latent Energy Streamer Gui. Plasma Cannon Firepult YOLO Cannon AWS/Gauss XL Autogun Array AWS/Autocannon Field Lobotomy Kit Longsword +1 Deploy-a-Sentry Map ----- +----------------------------------------------------+ | | | | | | | | | | | | | | | | | | | | | | | | | | | | | | | | | | | | | | | | | | | | | | | ?????????????????????????#???????????????????????? | | ?????????????????????####X####???????????????????? | | ?????????????????????# @ #???????????????????? | | ?????????????????????# #???????????????????? | | ?????????????????????#] ! = #???????????????????? | | ?????????????????????## ##???????????????????? | | ?????????????????????#X #????????????????????? | | ?????????????????????## #????????????????????? | | ??????????????????????# #????????????????????? | | ??????????????????????# #???###??????????????? | | ??????????????????????# #??"""""?????????????? | | ??????????????????????# ## """?????????????? | | ??????????????????????# X""?????????????? | | ??????????????????????# ## """?????????????? | | ????????????????####??# #??"""""?????????????? | | ????????????????"""""?# #???###??????????????? | | ????????????????""" ## #????????????????????? | | ??????????????#""X" #????????????????????? | | ??????????????#" #????????????????????? | | ??????????????#" ## #????????????????????? | | ??????????????#""""""?# #?#########??????????? | | ????????????????"###??# #?#"""""""#??????????? | | ??????????????????????# #?#"""""""#??????????? | | ??????????????????????# #?#"""""""#??????????? | | ?????????????????????## ###"" """"#??????????? | | ?????????????????????#" """"#??????????? | | ?????????????????????#" """#??????????? | +----------------------------------------------------+ Best States ------------- Heat Dissipation 28 Energy Generation 15 Energy Capacity 280 Matter Stores 300 Matter Capacity 300 Sight Range 18 Terrain Scan Density 10 Armor Coverage 150 Evasion (%) 55 Recoil Reduction 2 Item Schematics ----------------- None Robot Schematics ------------------ None Fabricated ------------ Nothing Repaired ---------- Nothing Studied --------- None Alien Tech Used ----------------- None Achievements -------------- None Challenges ------------ None Game ------ Seed CompanionNetworkedCharge Manual? 0 Play Time 00:14:11 Cumulative 600.5 hours Start 2025.12.07 @ 03:22:35 End 2025.12.08 @ 08:17:07 Sessions 8 Manual Loads 0 Difficulty Rogue Special Mode None Game No. 772 Rogue 772 Adventurer 0 Explorer 0 Win Type - Total 21 Types 10/1/2/2/2/0/2/2/0/0 Lore% 94 Gallery% 90 Achievement% 77 Wizard Run 0 Options --------- Layout 2 ASCII 0 Keyboard 0 Movement Mouse Keybinds 0 Fullscreen 2 Font 24/Smallcaps Map View 50x49 Zoom Use 0% Tactical HUD 1 Map Filters NONE Filters NONE Steam 1 RUN: a0f58741-8754-4ba8-9054-441c225b29de